lending/lending_fUSD_20241229
["ID","MTS","AMOUNT","RATE_DAILY","PERIOD"]
[347118361,1735507838230,-501.43866339,0.00016497,2]
[347118362,1735507838239,-527.90643545,0.00016497,2]
[347118364,1735507838249,-500.0,0.00016497,2]
[347118365,1735507838258,-500.0,0.00016497,2]
[347118366,1735507838267,-501.61129221,0.00016497,2]
[347118367,1735507838276,-501.01802147,0.00016497,2]
[347118368,1735507838285,-501.34304649,0.00016497,2]
[347118369,1735507838295,-501.61545183,0.00016497,2]
[347118371,1735507838304,-500.0,0.00016497,2]
[347118373,1735507838313,-501.91051,0.00016497,2]
[347118374,1735507838322,-501.38588844,0.00016497,2]
[347118375,1735507838331,-500.0,0.00016497,2]
[347118376,1735507838340,-500.0,0.00016497,2]
[347118377,1735507838350,-501.18659539,0.00016497,2]
[347118378,1735507838359,-500.0,0.00016497,2]
[347118379,1735507838369,-500.0,0.00016497,2]
[347118380,1735507838378,-500.0,0.00016497,2]
[347118381,1735507838387,-500.0,0.00016497,2]
[347118382,1735507838396,-501.36158088,0.00016497,2]
[347118383,1735507838405,-500.31436605,0.00016497,2]
[347118384,1735507838414,-500.0,0.00016497,2]
[347118385,1735507838423,-501.394843,0.00016497,2]
[347118386,1735507838433,-500.0,0.00016497,2]
[347118387,1735507838442,-500.0,0.00016497,2]
[347118388,1735507838451,-500.0,0.00016497,2]
[347118389,1735507838461,-500.0,0.00016497,2]
[347118390,1735507838470,-500.0,0.00016497,2]
[347118391,1735507838479,-501.26139936,0.00016497,2]
[347118392,1735507838488,-500.0,0.00016497,2]
[347118393,1735507838497,-500.0,0.00016497,2]
[347118394,1735507838507,-500.54420064,0.00016497,2]
[347118395,1735507838516,-500.64442047,0.00016497,2]
[347118396,1735507838525,-500.0,0.00016497,2]
[347118397,1735507838535,-500.89030472,0.00016497,2]
[347118398,1735507838544,-500.0,0.00016497,2]
[347118399,1735507838553,-500.0,0.00016497,2]
[347118400,1735507838562,-501.55234543,0.00016497,2]
[347118401,1735507838571,-504.70868543,0.00016497,2]
[347118402,1735507838581,-500.0,0.00016497,2]
[347118403,1735507838590,-501.19025941,0.00016497,2]
[347118404,1735507838599,-500.0,0.00016497,2]
[347118405,1735507838609,-501.1244292,0.00016497,2]
[347118406,1735507838618,-500.0,0.00016497,2]
[347118407,1735507838627,-500.0,0.00016497,2]
[347118408,1735507838636,-501.09474597,0.00016497,2]
[347118409,1735507838646,-500.0,0.00016497,2]
[347118410,1735507838655,-500.0,0.00016497,2]
[347118411,1735507838664,-500.0,0.00016497,2]
[347118412,1735507838673,-501.50824601,0.00016497,2]
[347118413,1735507838682,-500.0,0.00016497,2]
[347118414,1735507838691,-500.0,0.00016497,2]
[347118415,1735507838700,-500.0,0.00016497,2]
[347118416,1735507838710,-500.0,0.00016497,2]
[347118417,1735507838720,-500.35838619,0.00016497,2]
[347118418,1735507838729,-500.0,0.00016497,2]
[347118419,1735507838739,-500.0,0.00016497,2]
[347118420,1735507838749,-500.0,0.00016497,2]
[347118421,1735507838758,-500.89159136,0.00016497,2]
[347118422,1735507838768,-500.0,0.00016497,2]
[347118423,1735507838777,-501.05648539,0.00016497,2]
[347118424,1735507838787,-500.0,0.00016497,2]
[347118425,1735507838796,-500.0,0.00016497,2]
[347118426,1735507838806,-500.59106007,0.00016497,2]
[347118427,1735507838816,-500.0,0.00016497,2]
[347118428,1735507838826,-500.0,0.00016497,2]
[347118429,1735507838835,-500.0,0.00016497,2]
[347118430,1735507838844,-500.0,0.00016497,2]
[347118431,1735507838854,-500.0,0.00016497,2]
[347118432,1735507838863,-500.0,0.00016497,2]
[347118433,1735507838872,-500.0,0.00016497,2]
[347118434,1735507838882,-500.0,0.00016497,2]
[347118435,1735507838891,-500.0,0.00016497,2]
[347118436,1735507838900,-500.0,0.00016497,2]
[347118437,1735507838910,-500.0,0.00016497,2]
[347118438,1735507838920,-502.45875721,0.00016497,2]
[347118439,1735507838929,-500.0,0.00016497,2]
[347118440,1735507838939,-500.0,0.00016497,2]
[347118441,1735507838949,-501.30347862,0.00016497,2]
[347118442,1735507838959,-500.0,0.00016497,2]
[347118443,1735507838968,-500.0,0.00016497,2]
[347118444,1735507838978,-501.8186649,0.00016497,2]
[347118445,1735507838987,-500.0,0.00016497,2]
[347118446,1735507838998,-500.0,0.00016497,2]
[347118447,1735507839007,-500.0,0.00016497,2]
[347118448,1735507839016,-500.45653077,0.00016497,2]
[347118449,1735507839026,-500.0,0.00016497,2]
[347118450,1735507839036,-500.0,0.00016497,2]
[347118451,1735507839046,-500.0,0.00016497,2]
[347118452,1735507839056,-500.0,0.00016497,2]
[347118453,1735507839066,-500.46695366,0.00016497,2]
[347118454,1735507839075,-500.81842408,0.00016497,2]
[347118455,1735507839085,-500.0,0.00016497,2]
[347118456,1735507839094,-500.0,0.00016497,2]
[347118457,1735507839103,-500.0,0.00016497,2]
[347118458,1735507839113,-500.0,0.00016497,2]
[347118459,1735507839122,-502.08161289,0.00016497,2]
[347118460,1735507839131,-500.0,0.00016497,2]
[347118461,1735507839141,-500.0,0.00016497,2]
[347118462,1735507839150,-500.84661712,0.00016497,2]
[347118463,1735507839160,-500.0,0.00016497,2]
[347118464,1735507839169,-500.0,0.00016497,2]
[347118465,1735507839179,-500.0,0.00016497,2]
[347118466,1735507839188,-500.66212435,0.00016497,2]
[347118467,1735507839197,-500.0,0.00016497,2]
[347118468,1735507839206,-500.0,0.00016497,2]
[347118469,1735507839215,-500.0,0.00016497,2]
[347118470,1735507839225,-504.35135856,0.00016497,2]
[347118471,1735507839236,-500.0,0.00016497,2]
[347118472,1735507839245,-502.80366271,0.00016497,2]
[347118473,1735507839255,-500.0,0.00016497,2]
[347118474,1735507839264,-500.0,0.00016497,2]
[347118475,1735507839273,-500.0,0.00016497,2]
[347118476,1735507839283,-500.0,0.00016497,2]
[347118477,1735507839291,-500.54715817,0.00016497,2]
[347118478,1735507839301,-500.0,0.00016497,2]
[347118479,1735507839310,-500.0,0.00016497,2]
[347118480,1735507839320,-584.61303349,0.00016497,2]
[347118481,1735507839329,-500.0,0.00016497,2]
[347118482,1735507839338,-500.0,0.00016497,2]
[347118483,1735507839347,-500.0,0.00016497,2]
[347118484,1735507839357,-500.0,0.00016497,2]
[347118485,1735507839367,-500.0,0.00016497,2]
[347118486,1735507839376,-500.46026021,0.00016497,2]
[347118487,1735507839385,-500.0,0.00016497,2]
[347118488,1735507839394,-500.0,0.00016497,2]
[347118490,1735507839403,-500.0,0.00016497,2]
[347118491,1735507839413,-500.0,0.00016497,2]
[347118493,1735507839422,-500.0,0.00016497,2]
[347118494,1735507839431,-500.0,0.00016497,2]
[347118495,1735507839441,-500.0,0.00016497,2]
[347118496,1735507839450,-500.0,0.00016497,2]
[347118497,1735507839459,-500.0,0.00016497,2]
[347118498,1735507839469,-500.0,0.00016497,2]
[347118499,1735507839478,-502.19149858,0.00016497,2]
[347118500,1735507839488,-500.50995435,0.00016497,2]
[347118502,1735507839497,-500.0,0.00016497,2]
[347118503,1735507839506,-500.0,0.00016497,2]
[347118504,1735507839515,-500.0,0.00016497,2]
[347118505,1735507839524,-500.0,0.00016497,2]
[347118506,1735507839534,-500.0,0.00016497,2]
[347118507,1735507839543,-500.0,0.00016497,2]
[347118508,1735507839553,-500.53817154,0.00016497,2]
[347118509,1735507839562,-500.0,0.00016497,2]
[347118510,1735507839571,-500.0,0.00016497,2]
[347118511,1735507839580,-500.0,0.00016497,2]
[347118512,1735507839590,-500.0,0.00016497,2]
[347118513,1735507839599,-500.0,0.00016497,2]
[347118514,1735507839608,-500.0,0.00016497,2]
[347118515,1735507839617,-500.0,0.00016497,2]
[347118516,1735507839625,-500.0,0.00016497,2]
[347118517,1735507839634,-500.0,0.00016497,2]
[347118518,1735507839643,-500.76094252,0.00016497,2]
[347118519,1735507839652,-502.6999695,0.00016497,2]
[347118520,1735507839661,-500.0,0.00016497,2]
[347118521,1735507839671,-500.0,0.00016497,2]
[347118522,1735507839680,-500.0,0.00016497,2]
[347118523,1735507839691,-500.0,0.00016497,2]
[347118524,1735507839702,-500.54511549,0.00016497,2]
[347118525,1735507839711,-500.0,0.00016497,2]
[347118526,1735507839720,-500.0,0.00016497,2]
[347118527,1735507839729,-500.0,0.00016497,2]
[347118528,1735507839738,-500.0,0.00016497,2]
[347118529,1735507839747,-500.0,0.00016497,2]
[347118530,1735507839756,-500.56592744,0.00016497,2]
[347118531,1735507839765,-500.0,0.00016497,2]
[347118532,1735507839774,-500.0,0.00016497,2]
[347118533,1735507839783,-500.0,0.00016497,2]
[347118534,1735507839792,-500.0,0.00016497,2]
[347118535,1735507839801,-500.0,0.00016497,2]
[347118536,1735507839810,-500.0,0.00016497,2]
[347118537,1735507839819,-500.0,0.00016497,2]
[347118538,1735507839828,-500.0,0.00016497,2]
[347118539,1735507839837,-500.0,0.00016497,2]
[347118540,1735507839846,-500.0,0.00016497,2]
[347118541,1735507839855,-500.0,0.00016497,2]
[347118542,1735507839864,-501.23862519,0.00016497,2]
[347118543,1735507839873,-500.0,0.00016497,2]
[347118545,1735507839882,-500.4033558,0.00016497,2]
[347118547,1735507839891,-500.0,0.00016497,2]
[347118549,1735507839900,-500.0,0.00016497,2]
[347118550,1735507839909,-524.65053302,0.00016497,2]
[347118551,1735507839918,-500.0,0.00016497,2]
[347118552,1735507839928,-500.0,0.00016497,2]
[347118553,1735507839937,-501.19296815,0.00016497,2]
[347118555,1735507839946,-500.0,0.00016497,2]
[347118556,1735507839956,-624.08989358,0.00016497,2]
[347118557,1735507839965,-500.0,0.00016497,2]
[347118558,1735507839974,-500.0,0.00016497,2]
[347118559,1735507839983,-500.0,0.00016497,2]
[347118560,1735507839992,-500.0,0.00016497,2]
[347118561,1735507840002,-500.0,0.00016497,2]
[347118562,1735507840011,-1172.35,0.00016497,2]
[347118563,1735507840021,-500.0,0.00016497,2]
[347118564,1735507840031,-2060.91,0.00016497,2]
[347118565,1735507840040,-500.0,0.00016497,2]
[347118566,1735507840050,-590.34,0.00016497,2]
[347118567,1735507840059,-500.0,0.00016497,2]
[347118568,1735507840069,-153.09084268,0.00016497,2]
[347118569,1735507840078,-500.0,0.00016497,2]
[347118570,1735507840087,-992.57,0.00016497,2]
[347118571,1735507840096,-500.0,0.00016497,2]
[347118572,1735507840285,-500.0,0.00016497,2]
[347118573,1735507840294,-7636.59,0.00016497,2]
[347118574,1735507840304,-500.0,0.00016497,2]
[347118575,1735507840313,-500.0,0.00016497,2]
[347118576,1735507840322,-1301.04,0.00016497,2]
[347118577,1735507840331,-500.0,0.00016497,2]
[347118578,1735507840341,-500.0,0.00016497,2]
[347118579,1735507840350,-500.0,0.00016497,2]
[347118580,1735507840360,-500.0,0.00016497,2]
[347118581,1735507840369,-500.0,0.00016497,2]
[347118582,1735507840378,-500.0,0.00016497,2]
[347118583,1735507840388,-553.1,0.00016497,2]
[347118584,1735507840397,-500.0,0.00016497,2]
[347118585,1735507840406,-500.0,0.00016497,2]
[347118586,1735507840416,-500.0,0.00016497,2]
[347118587,1735507840425,-500.0,0.00016497,2]
[347118588,1735507840435,-500.0,0.00016497,2]
[347118589,1735507840444,-500.0,0.00016497,2]
[347118590,1735507840453,-500.0,0.00016497,2]
[347118591,1735507840461,-500.0,0.00016497,2]
[347118592,1735507840470,-1416.56,0.00016497,2]
[347118593,1735507840479,-500.0,0.00016497,2]
[347118594,1735507840488,-500.0,0.00016497,2]
[347118595,1735507840497,-500.0,0.00016497,2]
[347118596,1735507840505,-500.0,0.00016497,2]
[347118597,1735507840514,-500.0,0.00016497,2]
[347118598,1735507840523,-500.0,0.00016497,2]
[347118599,1735507840532,-500.0,0.00016497,2]
[347118600,1735507840541,-500.0,0.00016497,2]
[347118601,1735507840550,-2471.47,0.00016497,2]
[347118602,1735507840559,-1136.20222885,0.00016497,7]
[347118603,1735507840568,-500.0,0.00016497,2]
[347118604,1735507840577,-500.0,0.00016497,2]
[347118605,1735507840585,-500.0,0.00016497,2]
[347118606,1735507840595,-500.0,0.00016497,2]
[347118607,1735507840604,-500.0,0.00016497,2]
[347118608,1735507840614,-500.0,0.00016497,2]
[347118609,1735507840623,-500.0,0.00016497,2]
[347118610,1735507840632,-500.0,0.00016497,2]
[347118611,1735507840641,-500.0,0.00016497,2]
[347118612,1735507840651,-500.0,0.00016497,2]
[347118613,1735507840660,-519.45,0.00016497,2]
[347118614,1735507840670,-500.0,0.00016497,2]
[347118615,1735507840680,-500.0,0.00016497,2]
[347118616,1735507840689,-500.0,0.00016497,2]
[347118617,1735507840698,-500.0,0.00016497,2]
[347118618,1735507840707,-500.0,0.00016497,2]
[347118619,1735507840717,-500.0,0.00016497,2]
[347118620,1735507840726,-500.0,0.00016497,2]
[347118621,1735507840735,-500.0,0.00016497,2]
[347118622,1735507840744,-651.78,0.00016497,2]
[347118623,1735507840754,-301.95390175,0.00016497,2]
[347118624,1735507840763,-500.0,0.00016497,2]
[347118625,1735507840772,-500.0,0.00016497,2]
[347118626,1735507840782,-500.0,0.00016497,2]
[347118627,1735507840791,-500.0,0.00016497,2]
[347118628,1735507840801,-500.0,0.00016497,2]
[347118629,1735507840810,-500.0,0.00016497,2]
[347118630,1735507840819,-500.0,0.00016497,2]
[347118631,1735507840829,-500.0,0.00016497,2]
[347118632,1735507840838,-617.83430363,0.00016497,2]
[347118633,1735507840847,-500.0,0.00016497,2]
[347118634,1735507840856,-500.0,0.00016497,2]
[347118635,1735507840865,-500.0,0.00016497,2]
[347118636,1735507840874,-500.0,0.00016497,2]
[347118637,1735507840883,-500.0,0.00016497,2]
[347118638,1735507840893,-500.0,0.00016497,2]
[347118639,1735507840902,-500.0,0.00016497,2]
[347118640,1735507840911,-505.2129984,0.00016497,2]
[347118641,1735507840921,-876.22,0.00016497,2]
[347118642,1735507840930,-500.0,0.00016497,2]
[347118643,1735507840939,-500.0,0.00016497,2]
[347118644,1735507840948,-500.0,0.00016497,2]
[347118645,1735507840957,-500.0,0.00016497,2]
[347118646,1735507840966,-500.0,0.00016497,2]
[347118647,1735507840976,-500.0,0.00016497,2]
[347118648,1735507840985,-42681.08293357,0.00016498,2]
[347118649,1735507841015,-3151252.18709061,0.00016498,2]
[347118650,1735507841028,-430518.60762112,0.00016498,2]
[347118651,1735507841039,-532.5,0.00016498,2]
[347118652,1735507841052,-20780.54390345,0.00016498,2]
[347118653,1735507841065,-25123.0463099,0.00016498,2]
[347118654,1735507841077,-535299.49342611,0.00016498,2]
[347118655,1735507841089,-2593.591,0.00016498,2]
[347118656,1735507841100,-6983.99241691,0.00016498,2]
[347118657,1735507841112,-544.99900001,0.00016498,2]
[347118658,1735507841123,-3212.72027962,0.00016498,2]
[347118659,1735507841136,-1022.466,0.00016498,2]
[347118660,1735507841147,-224417.55715712,0.00016498,2]
[347118661,1735507841159,-6596.03655,0.00016498,2]
[347118662,1735507841171,-752.655,0.00016498,2]
[347118663,1735507841182,-4151.20351629,0.00016498,2]
[347118664,1735507841194,-491.12402083,0.00016498,2]
[347118665,1735507841206,-2935.31662587,0.00016498,2]
[347118666,1735507841217,-9780.7,0.00016498,2]
[347118667,1735507841229,-36108.9073469,0.00016498,2]
[347118668,1735507841254,-4467.0838384,0.00016498,2]
[347118669,1735507841265,-371.8009997,0.00016498,2]
[347118670,1735507841276,-375.13799864,0.00016498,2]
[347118671,1735507841288,-1085.54122135,0.00016498,2]
[347118672,1735507841299,-972.18541,0.00016498,2]
[347118673,1735507841484,-337.565,0.00016496,2]
[347118674,1735507841499,-162.435,0.00016496,2]
[347118675,1735507841509,-500.0,0.00016497,2]
[347118676,1735507841518,-4143.115,0.00016498,2]
[347118677,1735507841538,-851.02510309,0.00016498,2]
[347118715,1735507922735,150.0,0.00023,120]
[347118716,1735507934943,500.0,0.00016498,120]
[347118717,1735507935280,500.0,0.00016526,120]
[347118718,1735507935564,500.0,0.00016553,120]
[347118719,1735507936456,500.0,0.00016581,120]
[347118720,1735507936716,500.0,0.00016608,120]
[347118721,1735507936975,500.0,0.00016635,120]
[347118722,1735507937240,500.0,0.00016663,120]
[347118723,1735507937505,353.01,0.0001669,120]
[347118725,1735508577607,5000.0,0.00023,120]
[347118726,1735508590726,500.0,0.00016498,120]
[347118727,1735508590976,500.0,0.00016526,120]
[347118728,1735508591232,500.0,0.00016553,120]
[347118729,1735508591510,500.0,0.00016581,120]
[347118730,1735508591767,500.0,0.00016608,120]
[347118731,1735508592084,500.0,0.00016635,120]
[347118732,1735508592383,443.85,0.00016663,120]
[347118733,1735508709475,157.37,0.00010137,2]
[347118734,1735508728999,150.123018,0.00023,120]
[347118735,1735508730550,150.123018,0.00023,120]
[347118751,1735509031851,-172.94,0.00011815,2]
[347118752,1735509031861,-176.92,0.00012098,2]
[347118753,1735509031870,-611.88,0.00013052,2]
[347118754,1735509031880,-300.0,0.00014809,2]
[347118755,1735509031889,-22183.59732052,0.0001481,2]
[347118756,1735509031900,-1706.40267948,0.0001481,2]
[347118757,1735509031910,-1553.53684238,0.00015009,2]
[347118758,1735509031921,-10087.46315762,0.00015009,2]
[347118759,1735509031931,-250.0,0.00015024,2]
[347118760,1735509031940,-277.53684238,0.0001507,2]
[347118761,1735509031951,-722.46315762,0.0001507,2]
[347118762,1735509031961,-200.0,0.00015073,2]
[347118763,1735509031970,-200.0,0.000151,5]
[347118764,1735509031979,-500.0,0.000152,5]
[347118765,1735509031989,-746.64,0.00015226,2]
[347118766,1735509031998,-250.0,0.00015291,2]
[347118767,1735509032007,-700.0,0.000153,5]
[347118768,1735509032017,-611.88,0.00015316,2]
[347118769,1735509032026,-4098.79,0.00015341,2]
[347118770,1735509032035,-1100.61757014,0.000154,2]
[347118771,1735509032046,-1000.0,0.000154,5]
[347118772,1735509032055,-250.0,0.00015409,2]
[347118773,1735509032065,-183.81,0.00015418,2]
[347118774,1735509032075,-1300.0,0.000155,5]
[347118775,1735509032084,-200.0,0.000156,5]
[347118776,1735509032094,-180.59,0.00015635,2]
[347118777,1735509032103,-503.0,0.00015671,2]
[347118778,1735509032112,-200.0,0.000157,5]
[347118779,1735509032121,-200.0,0.000158,5]
[347118780,1735509032130,-6730.48384605,0.00015816,2]
[347118781,1735509032143,-750.37477044,0.00015816,2]
[347118782,1735509032167,-12631.14138351,0.00015816,2]
[347118783,1735509032176,-200.0,0.000159,5]
[347118784,1735509032185,-420.0,0.00016211,2]
[347118785,1735509032194,-505.675,0.0001624,2]
[347118786,1735509032203,-429.20526387,0.00016294,2]
[347118787,1735509032212,-2197.08618,0.0001633,2]
[347118788,1735509032222,-165.8322718,0.00016364,2]
[347118789,1735509032231,-435.65514175,0.00016397,2]
[347118790,1735509032240,-435.65514171,0.00016397,2]
[347118791,1735509032249,-435.65514171,0.00016397,2]
[347118792,1735509032259,-435.65514171,0.00016398,2]
[347118793,1735509032268,-1239.233,0.00016398,2]
[347118794,1735509032277,-435.65514171,0.00016398,2]
[347118795,1735509032287,-435.65514171,0.00016398,2]
[347118796,1735509032297,-4157.87967719,0.00016398,2]
[347118798,1735509032306,-435.65514171,0.00016398,2]
[347118800,1735509032315,-157.123007,0.00016448,2]
[347118802,1735509032325,-157.123007,0.00016448,2]
[347118804,1735509032334,-157.123007,0.00016448,2]
[347118806,1735509032344,-157.123007,0.00016448,2]
[347118808,1735509032353,-157.123007,0.00016448,2]
[347118810,1735509032362,-500.0,0.00016463,2]
[347118811,1735509032372,-500.0,0.00016463,2]
[347118813,1735509032381,-500.0,0.00016463,2]
[347118815,1735509032391,-336.25407897,0.00016464,2]
[347118817,1735509032400,-500.0,0.00016464,2]
[347118818,1735509032413,-360.77189647,0.00016464,2]
[347118821,1735509032430,-450.22319133,0.00016464,2]
[347118823,1735509032443,-500.0,0.00016464,2]
[347118826,1735509032457,-500.0,0.00016464,2]
[347118828,1735509032471,-500.0,0.00016464,2]
[347118831,1735509032485,-547.25,0.00016464,2]
[347118833,1735509032500,-500.0,0.00016464,2]
[347118836,1735509032515,-500.0,0.00016464,2]
[347118838,1735509032528,-500.0,0.00016464,2]
[347118840,1735509032539,-500.0,0.00016464,2]
[347118843,1735509032553,-500.0,0.00016464,2]
[347118845,1735509032568,-500.0,0.00016464,2]
[347118848,1735509032582,-500.0,0.00016464,2]
[347118850,1735509032595,-500.0,0.00016464,2]
[347118853,1735509032610,-500.0,0.00016464,2]
[347118856,1735509032625,-500.0,0.00016464,2]
[347118858,1735509032641,-500.0,0.00016464,2]
[347118860,1735509032655,-500.0,0.00016464,2]
[347118863,1735509032670,-500.0,0.00016464,2]
[347118865,1735509032684,-500.0,0.00016464,2]
[347118868,1735509032697,-500.0,0.00016464,2]
[347118870,1735509032710,-500.0,0.00016464,2]
[347118873,1735509032725,-500.0,0.00016464,2]
[347118875,1735509032738,-500.0,0.00016464,2]
[347118877,1735509032749,-500.0,0.00016464,2]
[347118879,1735509032761,-500.0,0.00016464,2]
[347118882,1735509032772,-500.0,0.00016464,2]
[347118885,1735509032787,-500.0,0.00016464,2]
[347118887,1735509032800,-500.0,0.00016464,2]
[347118889,1735509032811,-959.01,0.00016464,2]
[347118891,1735509032822,-500.0,0.00016464,2]
[347118894,1735509032837,-500.0,0.00016464,2]
[347118896,1735509032849,-500.0,0.00016464,2]
[347118898,1735509032859,-500.0,0.00016464,2]
[347118901,1735509032870,-500.0,0.00016464,2]
[347118903,1735509032881,-500.0,0.00016464,2]
[347118905,1735509032895,-500.0,0.00016464,2]
[347118907,1735509032906,-500.0,0.00016464,2]
[347118910,1735509032918,-500.0,0.00016464,2]
[347118912,1735509032930,-500.0,0.00016464,2]
[347118914,1735509032942,-500.0,0.00016464,2]
[347118916,1735509032953,-1630.2,0.00016464,2]
[347118919,1735509032965,-500.0,0.00016464,2]
[347118921,1735509032977,-500.0,0.00016464,2]
[347118923,1735509032989,-500.0,0.00016464,2]
[347118926,1735509033001,-500.0,0.00016464,2]
[347118928,1735509033013,-500.0,0.00016464,2]
[347118930,1735509033025,-500.0,0.00016464,2]
[347118932,1735509033036,-632.16,0.00016464,2]
[347118934,1735509033050,-500.0,0.00016464,2]
[347118937,1735509033062,-500.0,0.00016464,2]
[347118939,1735509033075,-500.0,0.00016464,2]
[347118941,1735509033088,-500.0,0.00016464,2]
[347118944,1735509033101,-500.0,0.00016464,2]
[347118946,1735509033114,-500.0,0.00016464,2]
[347118948,1735509033127,-752.34,0.00016464,2]
[347118951,1735509033140,-500.0,0.00016464,2]
[347118953,1735509033153,-500.0,0.00016464,2]
[347118955,1735509033165,-500.0,0.00016464,2]
[347118958,1735509033177,-500.0,0.00016464,2]
[347118960,1735509033190,-500.0,0.00016464,2]
[347118962,1735509033203,-500.0,0.00016464,2]
[347118965,1735509033216,-500.0,0.00016464,2]
[347118967,1735509033228,-500.0,0.00016464,2]
[347118969,1735509033243,-521.80449291,0.00016464,2]
[347118972,1735509033255,-500.0,0.00016464,2]
[347118974,1735509033268,-500.0,0.00016464,2]
[347118976,1735509033280,-500.0,0.00016464,2]
[347118979,1735509033295,-456.42020928,0.00016464,2]
[347118981,1735509033308,-500.0,0.00016464,2]
[347118983,1735509033320,-500.0,0.00016464,2]
[347118986,1735509033334,-500.0,0.00016464,2]
[347118988,1735509033347,-500.0,0.00016464,2]
[347118990,1735509033360,-500.38651557,0.00016464,2]
[347118993,1735509033372,-500.0,0.00016464,2]
[347118995,1735509033385,-500.0,0.00016464,2]
[347118997,1735509033397,-500.0,0.00016464,2]
[347118999,1735509033409,-500.0,0.00016464,2]
[347119002,1735509033421,-500.0,0.00016464,2]
[347119004,1735509033434,-500.0,0.00016464,2]
[347119006,1735509033447,-500.0,0.00016464,2]
[347119008,1735509033460,-500.0,0.00016464,2]
[347119011,1735509033473,-500.0,0.00016464,2]
[347119013,1735509033487,-500.0,0.00016464,2]
[347119015,1735509033500,-1659.32,0.00016464,2]
[347119018,1735509033513,-533.14379855,0.00016464,2]
[347119020,1735509033525,-500.0,0.00016464,2]
[347119022,1735509033537,-500.0,0.00016464,2]
[347119025,1735509033551,-500.0,0.00016464,2]
[347119027,1735509033564,-500.40181799,0.00016464,2]
[347119029,1735509033576,-500.0,0.00016464,2]
[347119031,1735509033588,-500.0,0.00016464,2]
[347119034,1735509033600,-504.13063808,0.00016464,2]
[347119036,1735509033613,-608.56557025,0.00016464,2]
[347119038,1735509033624,-500.0,0.00016464,2]
[347119040,1735509033639,-500.0,0.00016464,2]
[347119043,1735509033652,-500.0,0.00016464,2]
[347119045,1735509033664,-621.7597922,0.00016464,2]
[347119047,1735509033676,-500.0,0.00016464,2]
[347119049,1735509033687,-500.0,0.00016464,2]
[347119052,1735509033699,-500.0,0.00016464,2]
[347119054,1735509033713,-504.41996866,0.00016464,2]
[347119056,1735509033725,-500.0,0.00016464,2]
[347119059,1735509033737,-500.0,0.00016464,2]
[347119061,1735509033749,-500.0,0.00016464,2]
[347119063,1735509033761,-501.29518589,0.00016464,2]
[347119066,1735509033772,-500.0,0.00016464,2]
[347119068,1735509033784,-500.0,0.00016464,2]
[347119070,1735509033796,-500.0,0.00016464,2]
[347119072,1735509033808,-500.0,0.00016464,2]
[347119074,1735509033820,-500.0,0.00016464,2]
[347119077,1735509033832,-500.2461643,0.00016464,2]
[347119079,1735509033845,-532.57359219,0.00016464,2]
[347119081,1735509033857,-500.0,0.00016464,2]
[347119083,1735509033869,-849.76,0.00016464,2]
[347119086,1735509033881,-158.68377951,0.00016464,2]